fUSD/lending_fUSD_20250207
["ID","MTS","AMOUNT","RATE_DAILY","PERIOD"]
[352119943,1738954261598,-1145.01,0.00016575,2]
[352119944,1738954261613,-500.0,0.00016575,2]
[352119945,1738954261623,-500.0,0.00016575,2]
[352119946,1738954261633,-512.91,0.00016575,2]
[352119947,1738954261643,-500.0,0.00016575,2]
[352119948,1738954261652,-988.18,0.00016575,2]
[352119949,1738954261662,-500.0,0.00016575,2]
[352119950,1738954261671,-500.0,0.00016575,2]
[352119951,1738954261682,-1012.02,0.00016575,2]
[352119952,1738954261955,-500.0,0.00016575,2]
[352119953,1738954261970,-500.0,0.00016575,2]
[352119954,1738954261980,-1105.4,0.00016575,2]
[352119955,1738954261990,-2217.33,0.00016575,2]
[352119956,1738954261999,-1396.71,0.00016575,2]
[352119957,1738954262009,-507.46,0.00016575,2]
[352119958,1738954262019,-2053.81,0.00016575,2]
[352119959,1738954262028,-500.0,0.00016575,2]
[352119960,1738954262037,-1203.81,0.00016575,2]
[352119961,1738954262046,-1136.86,0.00016575,2]
[352119962,1738954262055,-500.0,0.00016575,2]
[352119963,1738954262065,-500.0,0.00016575,2]
[352119964,1738954262078,-3821.91,0.00016575,2]
[352119965,1738954262088,-2539.62,0.00016575,2]
[352119966,1738954262098,-500.0,0.00016575,2]
[352119967,1738954262107,-500.0,0.00016575,2]
[352119968,1738954262117,-500.0,0.00016575,2]
[352119969,1738954262126,-4416.19,0.00016575,2]
[352119970,1738954262136,-1142.6,0.00016575,2]
[352119971,1738954262146,-2844.23,0.00016575,2]
[352119972,1738954262155,-500.0,0.00016575,2]
[352119973,1738954262164,-500.0,0.00016575,2]
[352119974,1738954262173,-2134.0,0.00016575,2]
[352119975,1738954262183,-500.0,0.00016575,2]
[352119976,1738954262192,-500.0,0.00016575,2]
[352119977,1738954262201,-2662.04,0.00016575,2]
[352119978,1738954262217,-500.0,0.00016575,2]
[352119979,1738954262231,-3018.12,0.00016575,2]
[352119980,1738954262241,-508.1690318,0.00016575,2]
[352119981,1738954262252,-3136.92,0.00016575,2]
[352119982,1738954262262,-500.0,0.00016575,2]
[352119983,1738954262272,-2242.65,0.00016575,2]
[352119984,1738954262283,-500.0,0.00016575,2]
[352119985,1738954262293,-746.69,0.00016575,2]
[352119986,1738954262304,-500.0,0.00016575,2]
[352119987,1738954262314,-501.27665343,0.00016575,2]
[352119988,1738954262328,-500.0,0.00016575,2]
[352119989,1738954262338,-761.42,0.00016575,2]
[352119990,1738954262348,-500.0,0.00016575,2]
[352119991,1738954262358,-500.0,0.00016575,2]
[352119992,1738954262368,-500.0,0.00016575,2]
[352119993,1738954262378,-2871.04,0.00016575,2]
[352119994,1738954262388,-1868.54,0.00016575,2]
[352119995,1738954262398,-500.0,0.00016575,2]
[352119996,1738954262408,-500.0,0.00016575,2]
[352119997,1738954262418,-500.0,0.00016575,2]
[352119998,1738954262428,-500.0,0.00016575,2]
[352119999,1738954262438,-500.0,0.00016575,2]
[352120000,1738954262448,-500.6836047,0.00016575,2]
[352120001,1738954262458,-2115.56,0.00016575,2]
[352120002,1738954262468,-794.37,0.00016575,2]
[352120003,1738954262479,-1032.14,0.00016575,2]
[352120004,1738954262489,-500.0,0.00016575,2]
[352120005,1738954262499,-628.33,0.00016575,2]
[352120006,1738954262509,-500.0,0.00016575,2]
[352120007,1738954262519,-500.0,0.00016575,2]
[352120008,1738954262529,-2562.32,0.00016575,2]
[352120009,1738954262539,-500.0,0.00016575,2]
[352120010,1738954262549,-2457.95,0.00016575,2]
[352120011,1738954262560,-2882.62,0.00016575,2]
[352120012,1738954262570,-500.0,0.00016575,2]
[352120013,1738954262580,-2324.68,0.00016575,2]
[352120014,1738954262590,-1724.56,0.00016575,2]
[352120015,1738954262599,-1592.23,0.00016575,2]
[352120016,1738954262609,-500.0,0.00016575,2]
[352120017,1738954262618,-500.0,0.00016575,2]
[352120018,1738954262628,-500.0,0.00016575,2]
[352120019,1738954262638,-508.71198718,0.00016575,2]
[352120020,1738954262648,-1999.87,0.00016575,2]
[352120021,1738954262658,-500.0,0.00016575,2]
[352120022,1738954262668,-3722.36,0.00016575,2]
[352120023,1738954262678,-500.0,0.00016575,2]
[352120024,1738954262687,-939.59,0.00016575,2]
[352120025,1738954262696,-500.0,0.00016575,2]
[352120026,1738954262705,-500.0,0.00016575,2]
[352120027,1738954262714,-236.01253955,0.00016575,2]
[352120028,1738954263203,-263.98746045,0.00016575,2]
[352120029,1738954263213,-107.60119876,0.00016575,2]
[352120030,1738954263226,-389.40188853,0.00016575,2]
[352120031,1738954263238,-2.99691271,0.00016575,2]
[352120032,1738954263247,-555.09,0.00016575,2]
[352120033,1738954263257,-688.56,0.00016575,2]
[352120034,1738954263267,-500.0,0.00016575,2]
[352120035,1738954263277,-500.0,0.00016575,2]
[352120036,1738954263286,-3006.98112388,0.00016575,2]
[352120037,1738954263298,-1294.30887612,0.00016575,2]
[352120038,1738954263308,-606.90179654,0.00016575,2]
[352120039,1738954263319,-500.0,0.00016575,2]
[352120040,1738954263330,-8091.03,0.00016575,2]
[352120041,1738954263340,-500.0,0.00016575,2]
[352120042,1738954263351,-500.0,0.00016575,2]
[352120043,1738954263361,-1931.31,0.00016575,2]
[352120044,1738954263371,-3008.63,0.00016575,2]
[352120045,1738954263381,-500.0,0.00016575,2]
[352120046,1738954263391,-160.70695388,0.00016575,2]
[352120047,1738954263400,-4799.9,0.00016575,2]
[352120048,1738954263409,-714.62,0.00016575,2]
[352120049,1738954263418,-500.0,0.00016575,2]
[352120050,1738954263428,-2312.23862184,0.00016575,2]
[352120051,1738954264069,-393.641712,0.00016396,2]
[352120052,1738954264192,-49.59513035,0.00016396,2]
[352120053,1738954264202,-473.8828497,0.00016438,2]
[352120054,1738954264907,-26.1171503,0.00016438,2]
[352120055,1738954264916,-2909.14,0.00016438,2]
[352120056,1738954264926,-500.0,0.00016438,2]
[352120057,1738954264935,-500.0,0.00016438,2]
[352120058,1738954264944,-500.0,0.00016438,2]
[352120059,1738954264953,-500.0,0.00016438,2]
[352120060,1738954264962,-500.0,0.00016438,2]
[352120061,1738954264972,-500.0,0.00016438,2]
[352120062,1738954264981,-500.0,0.00016438,2]
[352120063,1738954264990,-1964.65536959,0.00016575,2]
[352120064,1738954265001,-1585.000015,0.00016575,2]
[352120065,1738954265012,-1281.37590721,0.00016575,2]
[352120066,1738954265022,-750.16596459,0.00016575,2]
[352120067,1738954265033,-732.542,0.00016575,2]
[352120068,1738954265154,-500.0,0.00016438,2]
[352120069,1738954265163,-2436.60212177,0.00016575,2]
[352120070,1738954265172,-3077.94,0.00016575,2]
[352120071,1738954265182,-500.0,0.00016575,2]
[352120072,1738954265191,-500.0,0.00016575,2]
[352120073,1738954265200,-500.0,0.00016575,2]
[352120074,1738954265209,-500.0,0.00016575,2]
[352120075,1738954265218,-500.0,0.00016575,2]
[352120076,1738954265227,-392.24789593,0.00016575,2]
[352120077,1738954265236,-500.0,0.00016575,2]
[352120078,1738954265245,-500.0,0.00016575,2]
[352120079,1738954265253,-195.12767967,0.00016575,2]
[352120080,1738954265262,-1622.59,0.00016575,2]
[352120081,1738954265271,-4426.18,0.00016575,2]
[352120082,1738954265280,-4792.44,0.00016575,2]
[352120083,1738954265289,-500.0,0.00016575,2]
[352120084,1738954265298,-500.0,0.00016575,2]
[352120085,1738954265307,-4655.61,0.00016575,2]
[352120086,1738954265317,-500.0,0.00016575,2]
[352120087,1738954265327,-500.0,0.00016575,2]
[352120088,1738954265336,-500.0,0.00016575,2]
[352120089,1738954265345,-3041.6,0.00016575,2]
[352120090,1738954265354,-500.0,0.00016575,2]
[352120091,1738954265363,-500.0,0.00016575,2]
[352120092,1738954265372,-1391.31,0.00016575,2]
[352120093,1738954265381,-1807.5,0.00016575,2]
[352120094,1738954265390,-500.0,0.00016575,2]
[352120095,1738954265398,-507.16454836,0.00016575,2]
[352120096,1738954265407,-500.0,0.00016575,2]
[352120097,1738954265416,-500.0,0.00016575,2]
[352120098,1738954265425,-6145.27,0.00016575,2]
[352120099,1738954265434,-2021.92,0.00016575,2]
[352120100,1738954265443,-1988.48,0.00016575,2]
[352120101,1738954265451,-500.0,0.00016575,2]
[352120102,1738954265460,-2200.6,0.00016575,2]
[352120103,1738954265469,-509.24405293,0.00016575,2]
[352120104,1738954265478,-181.87184824,0.00016575,2]
[352120105,1738954265487,-500.0,0.00016575,2]
[352120106,1738954265496,-500.0,0.00016575,2]
[352120107,1738954265505,-500.0,0.00016575,2]
[352120108,1738954265514,-1354.78,0.00016575,2]
[352120109,1738954265523,-500.0,0.00016575,2]
[352120110,1738954265532,-500.0,0.00016575,2]
[352120111,1738954265541,-500.0,0.00016575,2]
[352120112,1738954265549,-500.0,0.00016575,2]
[352120113,1738954265559,-4476.64,0.00016575,2]
[352120114,1738954265570,-500.0,0.00016575,2]
[352120115,1738954265579,-5235.44,0.00016575,2]
[352120116,1738954265588,-500.0,0.00016575,2]
[352120117,1738954265597,-500.0,0.00016575,2]
[352120118,1738954265606,-500.0,0.00016575,2]
[352120119,1738954265615,-1577.01,0.00016575,2]
[352120120,1738954265624,-2494.97,0.00016575,2]
[352120121,1738954265633,-500.0,0.00016575,2]
[352120122,1738954265642,-2118.69,0.00016575,2]
[352120123,1738954265652,-502.30776047,0.00016575,2]
[352120124,1738954265661,-500.0,0.00016575,2]
[352120125,1738954265670,-1243.0,0.00016575,2]
[352120126,1738954265678,-4544.73,0.00016575,2]
[352120127,1738954265688,-4210.11,0.00016575,2]
[352120128,1738954265697,-500.0,0.00016575,2]
[352120129,1738954265706,-500.0,0.00016575,2]
[352120130,1738954265715,-1038.18,0.00016575,2]
[352120131,1738954265724,-500.0,0.00016575,2]
[352120132,1738954265734,-2848.04,0.00016575,2]
[352120133,1738954265743,-500.0,0.00016575,2]
[352120134,1738954265752,-500.0,0.00016575,2]
[352120135,1738954265765,-177.14126873,0.00016575,2]
[352120136,1738954265774,-500.0,0.00016575,2]
[352120137,1738954265783,-500.0,0.00016575,2]
[352120138,1738954265792,-821.17,0.00016575,2]
[352120139,1738954265802,-1677.32,0.00016575,2]
[352120140,1738954265812,-500.0,0.00016575,2]
[352120141,1738954265824,-500.0,0.00016575,2]
[352120142,1738954265833,-1493.44,0.00016575,2]
[352120143,1738954265842,-500.0,0.00016575,2]
[352120144,1738954265852,-500.0,0.00016575,2]
[352120145,1738954265861,-500.0,0.00016575,2]
[352120146,1738954265871,-500.0,0.00016575,2]
[352120147,1738954265890,-1419.0,0.00016575,2]
[352120148,1738954265911,-2790.87,0.00016575,2]
[352120149,1738954265921,-500.0,0.00016575,2]
[352120150,1738954265930,-500.0,0.00016575,2]
[352120151,1738954265940,-500.0,0.00016575,2]
[352120152,1738954265949,-3737.48,0.00016575,2]
[352120153,1738954265958,-3430.89,0.00016575,2]
[352120154,1738954265967,-500.0,0.00016575,2]
[352120155,1738954265975,-500.0,0.00016575,2]
[352120156,1738954265984,-500.0,0.00016575,2]
[352120157,1738954265993,-500.0,0.00016575,2]
[352120158,1738954266003,-1079.71,0.00016575,2]
[352120159,1738954266012,-500.0,0.00016575,2]
[352120160,1738954266021,-500.0,0.00016575,2]
[352120161,1738954266030,-211.89855267,0.00016575,2]
[352120162,1738954266039,-500.0,0.00016575,2]
[352120163,1738954266048,-500.0,0.00016575,2]
[352120164,1738954266057,-500.0,0.00016575,2]
[352120165,1738954266067,-500.0,0.00016575,2]
[352120166,1738954266078,-835.62,0.00016575,2]
[352120167,1738954266087,-500.0,0.00016575,2]
[352120168,1738954266096,-1733.14,0.00016575,2]
[352120169,1738954266105,-500.0,0.00016575,2]
[352120170,1738954266114,-582.31,0.00016575,2]
[352120171,1738954266123,-500.0,0.00016575,2]
[352120172,1738954266132,-537.85,0.00016575,2]
[352120173,1738954266141,-500.0,0.00016575,2]
[352120174,1738954266149,-500.0,0.00016575,2]
[352120175,1738954266158,-500.0,0.00016575,2]
[352120176,1738954266167,-1341.01,0.00016575,2]
[352120177,1738954266175,-500.0,0.00016575,2]
[352120178,1738954266184,-500.0,0.00016575,2]
[352120179,1738954266193,-2909.14,0.00016575,2]
[352120180,1738954266202,-500.0,0.00016575,2]
[352120181,1738954266210,-500.0,0.00016575,2]
[352120182,1738954266219,-500.0,0.00016575,2]
[352120183,1738954266228,-500.0,0.00016575,2]
[352120184,1738954266237,-610.88543325,0.00016575,2]
[352120185,1738954266246,-580.45527341,0.0001658,2]
[352120186,1738954266255,-173.34649049,0.0001658,2]
[352120187,1738954266264,-286.43229834,0.0001658,2]
[352120188,1738954266274,-150.0,0.00016581,2]
[352120189,1738954266283,-150.0,0.00016591,2]
[352120190,1738954266292,-150.0,0.00016595,2]
[352120191,1738954266301,-580.45527341,0.00016597,2]
[352120192,1738954266310,-173.34649049,0.00016597,2]
[352120193,1738954266321,-286.43229834,0.00016597,2]
[352120194,1738954266330,-2021.9561,0.000166,2]
[352120195,1738954266339,-311.597,0.000166,2]
[352120196,1738954266348,-1393.6978,0.000166,2]
[352120197,1738954266357,-500.0,0.00016602,2]
[352120198,1738954266366,-1419.0,0.00016602,2]
[352120199,1738954266375,-2023.0,0.00016604,2]
[352120200,1738954266384,-1272.0,0.00016604,2]
[352120201,1738954266392,-150.0,0.00016604,2]
[352120202,1738954266401,-638.0,0.00016604,2]
[352120203,1738954266411,-568.0,0.00016604,2]
[352120204,1738954266420,-1827.0,0.00016604,2]
[352120205,1738954266429,-2954.0,0.00016604,2]
[352120206,1738954266437,-907.0,0.00016604,2]
[352120207,1738954266446,-783.0,0.00016604,2]
[352120208,1738954266455,-1264.0,0.00016604,2]
[352120209,1738954266464,-4024.0,0.00016604,2]
[352120210,1738954266474,-539.0,0.00016604,2]
[352120211,1738954266483,-3912.0,0.00016604,2]
[352120212,1738954266492,-150.0,0.00016604,2]
[352120213,1738954266500,-154.414,0.00016604,2]
[352120214,1738954266509,-1007.0,0.00016604,2]
[352120215,1738954266518,-150.699,0.00016604,2]
[352120216,1738954266527,-269.698,0.00016604,2]
[352120217,1738954266536,-1108.0,0.00016604,2]
[352120218,1738954266545,-150.0,0.00016607,2]
[352120219,1738954266554,-191.93871814,0.00016612,2]
[352120220,1738954266563,-227.09918969,0.00016612,2]
[352120221,1738954266573,-227.09918969,0.00016612,2]
[352120222,1738954266582,-227.09918969,0.00016612,2]
[352120223,1738954266591,-227.09918969,0.00016612,2]
[352120224,1738954266600,-227.09918969,0.00016612,2]
[352120225,1738954266608,-227.09918969,0.00016612,2]
[352120226,1738954266617,-227.09918969,0.00016612,2]
[352120227,1738954266626,-227.09918969,0.00016612,2]
[352120228,1738954266635,-227.09918969,0.00016612,2]
[352120229,1738954266644,-227.09918969,0.00016612,2]
[352120230,1738954266653,-227.09918969,0.00016612,2]
[352120231,1738954266663,-227.09918969,0.00016612,2]
[352120232,1738954266672,-227.09918969,0.00016612,2]
[352120233,1738954266681,-227.09918969,0.00016612,2]
[352120234,1738954266690,-227.09918969,0.00016612,2]
[352120235,1738954266699,-227.09918969,0.00016612,2]
[352120236,1738954266708,-227.09918969,0.00016612,2]
[352120237,1738954266718,-227.09918969,0.00016612,2]
[352120238,1738954266727,-227.09918969,0.00016612,2]
[352120239,1738954266736,-227.09,0.00016612,2]
[352120240,1738954266746,-227.1448611,0.00016612,2]
[352120241,1738954266756,-227.1448611,0.00016612,2]
[352120242,1738954266765,-227.1448611,0.00016612,2]
[352120243,1738954266778,-227.1448611,0.00016612,2]
[352120244,1738954266787,-227.1448611,0.00016612,2]
[352120245,1738954266798,-227.1448611,0.00016612,2]
[352120246,1738954266807,-227.1448611,0.00016612,2]
[352120247,1738954266817,-227.1448611,0.00016612,2]
[352120248,1738954266827,-227.1448611,0.00016612,2]
[352120249,1738954266835,-227.1448611,0.00016612,2]
[352120250,1738954266845,-227.1448611,0.00016612,2]
[352120251,1738954266855,-227.1448611,0.00016612,2]
[352120252,1738954266865,-227.1448611,0.00016612,2]
[352120253,1738954266873,-227.1448611,0.00016612,2]
[352120254,1738954266883,-227.1448611,0.00016612,2]
[352120255,1738954266892,-227.1448611,0.00016612,2]
[352120256,1738954266901,-227.1448611,0.00016612,2]
[352120257,1738954266911,-227.1448611,0.00016612,2]
[352120258,1738954266919,-227.1448611,0.00016612,2]
[352120259,1738954266929,-227.14,0.00016612,2]
[352120260,1738954266938,-156.0497039,0.00016612,2]
[352120261,1738954266948,-156.0497039,0.00016612,2]
[352120262,1738954266957,-156.0497039,0.00016612,2]
[352120263,1738954266966,-156.0497039,0.00016612,2]
[352120264,1738954266975,-156.0497039,0.00016612,2]
[352120265,1738954266983,-156.0497039,0.00016612,2]
[352120266,1738954266992,-156.0497039,0.00016612,2]
[352120267,1738954267002,-156.0497039,0.00016612,2]
[352120268,1738954267012,-156.0497039,0.00016612,2]
[352120269,1738954267021,-156.0497039,0.00016612,2]
[352120270,1738954267030,-156.0497039,0.00016612,2]
[352120271,1738954267039,-156.0497039,0.00016612,2]
[352120272,1738954267048,-156.0497039,0.00016612,2]
[352120273,1738954267057,-156.0497039,0.00016612,2]
[352120274,1738954267067,-156.0497039,0.00016612,2]
[352120275,1738954267077,-156.04,0.00016612,2]
[352120276,1738954267086,-580.45527341,0.00016613,2]
[352120277,1738954267094,-173.34649049,0.00016613,2]
[352120278,1738954267104,-286.43229834,0.00016613,2]
[352120279,1738954267113,-150.0,0.00016614,2]
[352120280,1738954267121,-254.97982236,0.00016619,2]
[352120281,1738954267130,-500.0,0.0001663,2]
[352120282,1738954267139,-1419.0,0.0001663,2]
[352120283,1738954267148,-580.45527341,0.0001663,2]
[352120284,1738954267157,-173.34649049,0.0001663,2]
[352120285,1738954267167,-150.28481497,0.0001663,2]
[352120286,1738954267176,-286.43229834,0.0001663,2]
[352120287,1738954267185,-150.83263068,0.0001663,2]
[352120288,1738954267194,-150.0,0.00016638,2]
[352120289,1738954267203,-150.0,0.00016644,2]
[352120290,1738954267212,-150.0,0.00016645,2]
[352120291,1738954267220,-2000.0,0.00016649,2]
[352120292,1738954267229,-94045.0,0.0001665,2]
[352120293,1738954267238,-150.0,0.0001665,2]
[352120294,1738954267247,-150.0,0.00016656,2]
[352120295,1738954267256,-500.0,0.00016657,2]
[352120296,1738954267265,-1419.0,0.00016657,2]
[352120297,1738954267274,-155.65,0.00016658,30]
[352120298,1738954267283,-150.0,0.00016679,2]
[352120299,1738954267292,-150.0,0.00016682,2]
[352120300,1738954267301,-500.0,0.00016685,2]
[352120301,1738954267310,-1419.0,0.00016685,2]
[352120302,1738954267319,-150.0,0.00016694,2]
[352120303,1738954267328,-150.0,0.00016694,2]
[352120304,1738954267337,-254.97982236,0.000167,2]
[352120305,1738954267346,-210.93304077,0.000167,2]
[352120306,1738954267354,-55460.98462309,0.000167,2]
[352120307,1738954267363,-150.0,0.00016702,2]
[352120308,1738954267371,-1034.04,0.00016703,2]
[352120309,1738954267381,-4043.70027462,0.0001671,2]
[352120310,1738954267390,-6210.12573935,0.0001671,2]
[352120311,1738954267399,-368.58543123,0.0001671,2]
[352120312,1738954267408,-592.23,0.00016711,2]
[352120313,1738954267416,-500.0,0.00016712,2]
[352120314,1738954267425,-1419.0,0.00016712,2]
[352120315,1738954267434,-481.822551,0.00016712,2]
[352120316,1738954267443,-481.822551,0.00016712,2]
[352120317,1738954267452,-956.814669,0.00016712,2]
[352120318,1738954267462,-151.0,0.00016712,2]
[352120319,1738954267471,-151.0,0.00016712,2]
[352120320,1738954267479,-500.0,0.00016712,2]
[352120321,1738954267488,-1902.430245,0.00016712,2]
[352120322,1738954267497,-500.0,0.00016712,2]
[352120323,1738954267506,-408.17902527,0.00016712,2]
[352120324,1738954267515,-500.0,0.00016712,2]
[352120325,1738954267524,-500.0,0.00016712,2]
[352120326,1738954267533,-500.0,0.00016712,2]
[352120327,1738954267542,-2005.221222,0.00016712,2]
[352120328,1738954267550,-500.0,0.00016712,2]
[352120329,1738954267560,-500.0,0.00016712,2]
[352120330,1738954267569,-591.28,0.00016712,2]
[352120331,1738954267578,-500.0,0.00016712,2]
[352120332,1738954267587,-500.0,0.00016712,2]
[352120333,1738954267730,-500.0,0.00016712,2]
[352120334,1738954267777,-500.0,0.00016712,2]
[352120335,1738954267787,-500.0,0.00016712,2]
[352120336,1738954267797,-500.0,0.00016712,2]
[352120337,1738954267807,-500.0,0.00016712,2]
[352120338,1738954267817,-340.57047481,0.00016712,2]
[352120339,1738954267827,-500.0,0.00016712,2]
[352120340,1738954267836,-500.0,0.00016712,2]
[352120341,1738954267846,-500.0,0.00016712,2]
[352120342,1738954267855,-500.0,0.00016712,2]
[352120343,1738954267865,-500.0,0.00016712,2]
[352120344,1738954267874,-500.0,0.00016712,2]
[352120345,1738954267884,-498.85706264,0.00016712,2]
[352120346,1738954267893,-500.0,0.00016712,2]
[352120347,1738954267903,-500.0,0.00016712,2]
[352120348,1738954267912,-500.0,0.00016712,2]
[352120349,1738954267922,-500.0,0.00016712,2]
[352120350,1738954267931,-500.0,0.00016712,2]
[352120351,1738954267941,-500.0,0.00016712,2]
[352120352,1738954267950,-326.53605892,0.00016712,2]
[352120353,1738954267959,-500.0,0.00016712,2]
[352120354,1738954267969,-500.0,0.00016712,2]
[352120355,1738954267978,-500.0,0.00016712,2]
[352120356,1738954267987,-500.0,0.00016712,2]
[352120357,1738954267996,-500.0,0.00016712,2]
[352120358,1738954268006,-500.0,0.00016712,2]
[352120359,1738954268015,-500.0,0.00016712,2]
[352120360,1738954268024,-500.0,0.00016712,2]
[352120361,1738954268033,-500.0,0.00016712,2]
[352120362,1738954268042,-500.0,0.00016712,2]
[352120363,1738954268051,-500.0,0.00016712,2]
[352120364,1738954268060,-500.0,0.00016712,2]
[352120365,1738954268070,-500.0,0.00016712,2]
[352120366,1738954268079,-500.0,0.00016712,2]
[352120367,1738954268088,-500.0,0.00016712,2]
[352120368,1738954268097,-500.0,0.00016712,2]
[352120369,1738954268107,-509.84589114,0.00016712,2]
[352120370,1738954268115,-500.0,0.00016712,2]
[352120371,1738954268125,-500.0,0.00016712,2]
[352120372,1738954268134,-262.94852101,0.00016712,2]
[352120373,1738954268143,-500.0,0.00016712,2]
[352120374,1738954268153,-500.0,0.00016712,2]
[352120375,1738954268162,-500.0,0.00016712,2]
[352120376,1738954268171,-575.49,0.00016712,2]
[352120377,1738954268180,-500.0,0.00016712,2]
[352120378,1738954268190,-500.0,0.00016712,2]
[352120379,1738954268200,-500.0,0.00016712,2]
[352120380,1738954268210,-500.0,0.00016712,2]
[352120381,1738954268219,-500.0,0.00016712,2]
[352120382,1738954268228,-527.39,0.00016712,2]
[352120383,1738954268237,-500.0,0.00016712,2]
[352120384,1738954268247,-500.0,0.00016712,2]
[352120385,1738954268256,-500.0,0.00016712,2]
[352120386,1738954268266,-500.0,0.00016712,2]
[352120387,1738954268275,-500.0,0.00016712,2]
[352120388,1738954268284,-500.0,0.00016712,2]
[352120389,1738954268293,-500.0,0.00016712,2]
[352120390,1738954268302,-500.0,0.00016712,2]
[352120391,1738954268311,-500.0,0.00016712,2]
[352120392,1738954268322,-500.0,0.00016712,2]
[352120393,1738954268331,-500.0,0.00016712,2]
[352120394,1738954268340,-500.0,0.00016712,2]
[352120395,1738954268350,-623.87,0.00016712,2]
[352120396,1738954268359,-500.0,0.00016712,2]
[352120397,1738954268368,-500.0,0.00016712,2]
[352120398,1738954268378,-500.0,0.00016712,2]
[352120399,1738954268387,-499.03975628,0.00016712,2]
[352120400,1738954268396,-500.0,0.00016712,2]
[352120401,1738954268406,-500.0,0.00016712,2]
[352120402,1738954268415,-500.0,0.00016712,2]
[352120403,1738954268425,-511.68862101,0.00016712,2]
[352120404,1738954268434,-500.0,0.00016712,2]
[352120405,1738954268443,-500.0,0.00016712,2]
[352120406,1738954268452,-500.0,0.00016712,2]
[352120407,1738954268462,-500.0,0.00016712,2]
[352120408,1738954268472,-500.0,0.00016712,2]
[352120409,1738954268481,-500.0,0.00016712,2]
[352120410,1738954268490,-500.0,0.00016712,2]
[352120411,1738954268499,-500.0,0.00016712,2]
[352120412,1738954268509,-500.0,0.00016712,2]
[352120413,1738954268518,-182.54481702,0.00016712,2]
[352120414,1738954268527,-500.0,0.00016712,2]
[352120415,1738954268536,-500.0,0.00016712,2]
[352120416,1738954268545,-500.0,0.00016712,2]
[352120417,1738954268554,-500.0,0.00016712,2]
[352120418,1738954268563,-500.0,0.00016712,2]
[352120419,1738954268573,-1809.71,0.00016712,2]
[352120420,1738954268582,-500.0,0.00016712,2]
[352120421,1738954268591,-500.0,0.00016712,2]
[352120422,1738954268600,-1479.41,0.00016712,2]
[352120423,1738954268609,-252.2094335,0.00016712,2]
[352120424,1738954268618,-500.0,0.00016712,2]
[352120425,1738954268627,-500.0,0.00016712,2]
[352120426,1738954268636,-500.0,0.00016712,2]
[352120427,1738954268645,-1032.15,0.00016712,2]
[352120428,1738954268655,-500.0,0.00016712,2]
[352120429,1738954268664,-500.0,0.00016712,2]
[352120430,1738954268674,-500.0,0.00016712,2]
[352120431,1738954268683,-500.0,0.00016712,2]
[352120432,1738954268693,-548.65,0.00016712,2]
[352120433,1738954268703,-500.0,0.00016712,2]
[352120434,1738954268712,-500.0,0.00016712,2]
[352120435,1738954268721,-500.0,0.00016712,2]
[352120436,1738954268741,-1769.48,0.00016712,2]
[352120437,1738954268750,-500.0,0.00016712,2]
[352120438,1738954268759,-2049.59,0.00016712,60]
[352120439,1738954268770,-500.0,0.00016712,2]
[352120440,1738954268780,-610.86,0.00016712,2]
[352120441,1738954268789,-719.81,0.00016712,2]
[352120442,1738954268799,-575.24,0.00016712,2]